bitfinex/quotes_ETHUSD_20250813
["timestamp","ask_amount","ask_price","bid_price","bid_amount"]
[1755058275563,2.88439482,4660.6,4660.5,7.817]
[1755058275739,4.75829482,4660.6,4660.5,7.817]
[1755058276057,5.21079482,4660.6,4660.5,11.321]
[1755058276262,5.65359482,4660.6,4660.5,11.321]
[1755058276760,5.65359482,4660.6,4660.5,7.817]
[1755058276963,5.65359482,4660.6,4660.5,11.321]
[1755058277524,5.65359482,4660.6,4660.5,7.817]
[1755058277767,5.65359482,4660.6,4660.5,11.321]
[1755058278567,5.65359482,4660.6,4660.5,2.674]
[1755058278750,5.20109482,4660.6,4660.5,11.319]
[1755058281331,2.88439482,4660.6,4660.5,11.319]
[1755058282026,2.62217711,4660.6,4660.5,11.7547]
[1755058282266,2.62217711,4660.6,4660.5,7.816]
[1755058282765,2.62217711,4660.6,4660.5,11.318]
[1755058283559,2.62217711,4660.6,4660.5,11.317]
[1755058283858,4.93887711,4660.6,4660.5,7.816]
[1755058284041,7.47474706,4660.6,4660.5,11.317]
[1755058285339,7.47474706,4660.6,4660.5,2.674]
[1755058285557,7.47474706,4660.6,4660.5,11.317]
[1755058286342,7.58194706,4660.6,4660.5,11.317]
[1755058287157,7.58194706,4660.6,4660.5,7.817]
[1755058287158,5.49857711,4660.6,4660.5,7.817]
[1755058287357,5.49857711,4660.6,4660.5,11.317]
[1755058287358,5.50057711,4660.6,4660.5,11.317]
[1755058287748,5.50057711,4660.6,4660.5,7.817]
[1755058288149,5.50057711,4660.6,4660.5,11.316]
[1755058288561,5.50057711,4660.6,4660.5,2.674]
[1755058288761,6.05063482,4660.6,4660.5,11.316]
[1755058289143,0.00217711,4660.3,4660.2,0.001]
[1755058289343,0.00217711,4660.3,4660.2,8.643]
[1755058289344,0.65937711,4660.3,4660.2,8.643]
[1755058289544,5.53657711,4660.3,4660.2,5.143]
[1755058289745,5.53657711,4660.3,4660.2,8.642]
[1755058290054,5.53657711,4660.3,4660.0,0.001]
[1755058290256,0.55,4660.1,4660.0,0.001]
[1755058290858,0.55,4660.1,4659.5,0.001]
[1755058290859,0.00217711,4659.9,4659.5,0.001]
[1755058291062,0.65937711,4659.9,4659.8,3.499]
[1755058291242,0.55,4659.8,4659.5,0.001]
[1755058291441,1.17708216,4659.8,4659.7,3.499]
[1755058291642,1.74645809,4659.8,4659.7,0.001]
[1755058291844,3.53375809,4659.8,4659.7,3.499]
[1755058292093,0.00217711,4659.6,4659.5,0.001]
[1755058292243,3.17217711,4659.6,4659.5,0.001]
[1755058292573,5.66655241,4659.6,4659.5,0.001]
[1755058292953,26.00998024,4659.6,4659.5,0.001]
[1755058293354,26.00998024,4659.6,4659.5,3.499]
[1755058293552,0.55,4659.5,4658.8,0.001]
[1755058293764,3.17,4659.4,4658.8,0.001]
[1755058293980,0.55,4659.3,4658.8,0.001]
[1755058294180,0.10937711,4659.0,4658.8,0.001]
[1755058294356,0.65937711,4659.0,4658.9,3.498]
[1755058294560,2.91657711,4659.0,4658.9,3.498]
[1755058295375,2.91657711,4659.0,4658.9,8.642]
[1755058295584,3.20823482,4659.0,4658.9,8.642]
[1755058296148,3.20823482,4659.0,4658.9,5.145]
[1755058296353,3.20823482,4659.0,4658.9,8.642]
[1755058296575,3.20823482,4659.0,4658.9,5.145]
[1755058296576,2.73833482,4659.0,4658.9,5.145]
[1755058296775,3.20823482,4659.0,4658.9,8.642]
[1755058296994,3.20823482,4659.0,4658.9,5.145]
[1755058297167,3.20823482,4659.0,4658.9,8.642]
[1755058297168,5.82823482,4659.0,4658.9,8.642]
[1755058297368,0.55,4658.9,4658.8,0.001]
[1755058297548,23.26355131,4658.9,4658.8,5.145]
[1755058297762,0.00217711,4658.5,4658.0,0.001]
[1755058297985,3.27937711,4658.5,4658.4,5.145]
[1755058298184,5.53657711,4658.5,4658.4,8.641]
[1755058298409,5.53657711,4658.5,4657.6,0.001]
[1755058298410,0.00217711,4657.7,4657.6,0.001]
[1755058298683,0.55,4657.6,4656.5,0.001]
[1755058298857,3.17,4657.6,4656.5,0.001]
[1755058299058,0.55217711,4657.4,4656.5,0.001]
[1755058299258,5.37873279,4657.4,4656.5,0.001]
[1755058299459,7.63593279,4657.4,4656.5,0.001]
[1755058299653,7.74313279,4657.4,4656.5,0.001]
[1755058299851,5.48593279,4657.4,4656.5,0.001]
[1755058300087,5.48593279,4657.4,4657.3,3.497]
[1755058300273,5.48593279,4657.4,4657.3,0.001]
[1755058300488,7.74313279,4657.4,4657.3,0.001]
[1755058300787,7.74313279,4657.4,4657.3,3.497]
[1755058301164,5.48593279,4657.4,4657.3,0.001]
[1755058301369,7.74313279,4657.4,4657.3,3.496]
[1755058301576,0.00217711,4657.1,4656.6,0.001]
[1755058301757,4.05369039,4657.1,4656.6,0.001]
[1755058302087,0.00217711,4656.7,4656.6,0.001]
[1755058302254,0.65937711,4656.7,4656.6,0.001]
[1755058302455,2.44667711,4656.7,4656.6,0.001]
[1755058302856,0.55217711,4656.7,4656.6,3.496]
[1755058303053,2.7019476,4656.7,4656.6,3.496]
[1755058303787,2.7019476,4656.7,4656.6,0.001]
[1755058304003,4.4892476,4656.7,4656.6,0.001]
[1755058304303,4.4892476,4656.7,4656.6,3.496]
[1755058304304,5.3219476,4656.7,4656.6,3.496]
[1755058305365,5.3219476,4656.7,4656.6,0.001]
[1755058305557,2.72937711,4656.7,4656.6,9.0955]
[1755058305956,2.72937711,4656.7,4656.6,5.6005]
[1755058306195,3.27937711,4656.7,4656.6,5.147]
[1755058306398,3.27937711,4656.7,4656.6,8.642]
[1755058306691,3.27937711,4656.7,4656.6,5.147]
[1755058306877,3.60731482,4656.7,4656.6,0.001]
[1755058307057,5.39461482,4656.7,4656.6,0.001]
[1755058307404,5.39461482,4656.7,4656.6,5.148]
[1755058307701,5.86451482,4656.7,4656.6,8.642]
[1755058308063,0.55,4656.6,4656.5,0.001]
[1755058308358,0.55,4656.6,4656.1,2.0]
[1755058308359,0.00217711,4656.2,4656.1,2.0]
[1755058308557,20.53290494,4656.2,4656.1,7.147]
[1755058308758,22.79010494,4656.2,4656.1,10.641]
[1755058309191,22.32020494,4656.2,4656.1,10.641]
[1755058309389,0.65937711,4656.2,4656.1,10.641]
[1755058309592,0.65937711,4656.2,4656.1,10.642]
[1755058309993,0.65937711,4656.2,4656.1,7.148]
[1755058310191,0.65937711,4656.2,4656.1,10.641]
[1755058312084,0.65937711,4656.2,4656.1,7.148]
[1755058312382,0.65937711,4656.2,4656.1,10.641]
[1755058312698,0.90404482,4656.2,4656.1,10.641]
[1755058313113,3.52404482,4656.2,4656.1,10.64]
[1755058313579,3.52404482,4656.2,4656.1,10.641]
[1755058313915,0.00217711,4655.9,4655.8,5.148]
[1755058314225,0.55,4655.6,4655.2,5.148]
[1755058314513,0.28071771,4655.8,4655.2,5.148]
[1755058314514,0.65937711,4655.3,4655.2,5.148]
[1755058314737,0.00217711,4653.8,4653.7,0.4535]
[1755058315021,3.27937711,4653.8,4653.7,3.1815]
[1755058315188,0.00217711,4653.4,4653.3,1.8138]
[1755058315384,2.72937711,4653.4,4653.3,10.9073]
[1755058315588,2.72937711,4653.4,4653.3,7.4153]
[1755058315808,2.72937711,4653.4,4653.3,10.9073]
[1755058316584,2.72937711,4653.4,4653.3,11.14688649]
[1755058316989,2.72937711,4653.4,4653.3,10.9073]
[1755058317233,2.72937711,4653.4,4653.3,5.148]
[1755058317434,2.72937711,4653.4,4653.3,9.0935]
[1755058317435,3.55231482,4653.4,4653.3,9.0935]
[1755058317619,3.44511482,4653.4,4653.3,9.0925]
[1755058317938,2.62217711,4653.4,4653.3,10.9063]
[1755058319220,2.62217711,4653.4,4653.3,7.4153]
[1755058319425,2.62217711,4653.4,4653.3,10.9063]
[1755058320023,2.62217711,4653.4,4653.3,7.4153]
[1755058320226,2.62217711,4653.4,4653.3,10.9063]
[1755058321061,2.62217711,4653.4,4653.3,7.3559]
[1755058321550,2.62217711,4653.4,4653.3,10.8469]
[1755058322742,2.62,4653.4,4653.3,10.8469]
[1755058323051,2.90071771,4655.8,4653.3,10.8469]
[1755058323213,0.29007177,4655.7,4653.4,2.2079]
[1755058323411,0.29007177,4655.7,4653.4,1.7802]
[1755058323716,0.29007177,4655.7,4653.5,0.4277]
[1755058323717,2.62,4655.6,4653.5,0.4277]
[1755058323932,2.62,4655.6,4653.6,5.2702]
[1755058324139,2.62,4655.6,4653.7,2.2079]
[1755058324413,0.00217711,4653.9,4653.8,3.9177]
[1755058324626,2.62217711,4653.9,4653.8,9.0667]
[1755058324849,2.62217711,4653.9,4653.8,10.8469]
[1755058325352,2.62217711,4653.9,4653.8,5.5777]
[1755058325525,2.62217711,4653.9,4653.8,9.0667]
[1755058326248,2.62217711,4653.9,4653.8,10.8469]
[1755058327346,2.62217711,4653.9,4653.8,7.3579]
[1755058327546,2.62217711,4653.9,4653.8,10.8459]
[1755058328135,2.62217711,4653.9,4653.8,5.15]
[1755058328323,2.89511482,4653.9,4653.8,8.638]
[1755058328713,2.89511482,4653.9,4653.8,5.15]
[1755058328913,2.89511482,4653.9,4653.8,8.638]
[1755058329119,0.00217711,4653.4,4653.3,0.4277]
[1755058329352,0.00217711,4653.4,4653.3,9.0647]
[1755058329648,2.72937711,4653.4,4653.3,10.8449]
[1755058330817,2.72937711,4653.4,4653.3,10.8439]
[1755058331218,2.72937711,4653.4,4653.3,10.8449]
[1755058331425,2.72937711,4653.4,4653.3,7.3579]
[1755058331643,2.72937711,4653.4,4653.3,10.8449]
[1755058333473,2.72937711,4653.4,4653.3,9.0647]
[1755058333849,2.72937711,4653.4,4653.3,10.8439]
[1755058334248,2.72937711,4653.4,4653.3,7.3579]
[1755058334653,2.72937711,4653.4,4653.3,10.8439]
[1755058335363,2.72937711,4653.4,4653.3,7.3579]
[1755058335581,2.255,4656.4,4653.3,8.636]
[1755058335881,0.1072,4655.7,4655.0,0.1072]
[1755058336081,0.1072,4655.7,4655.1,3.485]
[1755058336885,0.1072,4655.3,4655.2,3.485]
[1755058337759,2.3311,4655.3,4655.2,3.485]
[1755058338065,2.56421,4655.3,4655.2,3.485]
[1755058338266,2.56421,4655.3,4651.8,2.56227313]
[1755058338267,0.55,4655.2,4653.3,0.001]
[1755058338478,0.55,4655.2,4653.5,0.0152384]
[1755058338479,0.1072,4653.8,4653.5,0.0152384]
[1755058338657,0.1072,4653.8,4653.4,8.634]
[1755058338851,0.1072,4653.5,4653.4,8.634]
[1755058340275,1.7931,4655.0,4653.4,9.9136]
[1755058340480,0.1072,4653.7,4653.5,3.484]
[1755058341102,0.1072,4653.7,4653.4,5.149]
[1755058341302,0.1072,4653.7,4653.6,3.484]
[1755058341708,0.09382797,4653.7,4653.6,3.484]
[1755058343700,0.1072,4653.7,4653.6,3.484]
[1755058343899,2.2239,4655.0,4653.6,3.484]
[1755058344105,0.1072,4654.0,4653.6,3.9117]
[1755058344491,0.1072,4654.0,4653.6,3.484]
[1755058344875,0.1072,4654.0,4653.4,5.149]
[1755058345188,2.2239,4654.5,4653.5,3.483]
[1755058345189,0.1072,4653.6,4653.5,3.483]
[1755058346599,0.1072,4653.6,4653.4,5.149]
[1755058346766,0.1072,4653.6,4653.5,3.483]
[1755058348604,0.1072,4653.6,4653.5,3.482]
[1755058349116,0.1072,4654.5,4653.5,5.10379174]
[1755058349322,0.1072,4654.5,4653.5,4.3339]
[1755058349517,0.1072,4654.5,4653.8,0.1072]
[1755058349802,0.1072,4654.5,4653.9,3.482]
[1755058350684,0.1072,4654.5,4653.8,0.1072]
[1755058350685,0.55,4654.3,4654.0,5.149]
[1755058350898,16.05972219,4655.8,4654.0,5.149]
[1755058350899,0.55,4654.1,4654.0,5.149]
[1755058351098,2.7995,4654.1,4653.8,0.1072]
[1755058351425,2.7995,4654.1,4654.0,5.149]
[1755058351603,2.7995,4654.1,4651.9,0.645215]
[1755058351911,0.1072,4652.4,4651.9,0.001]
[1755058352090,0.1072,4652.4,4652.3,3.482]
[1755058352876,0.1072,4652.4,4652.3,3.9219]
[1755058353078,0.1072,4652.4,4652.3,3.482]
[1755058353522,0.1072,4652.4,4652.3,0.001]
[1755058353679,1.9117,4652.4,4652.3,3.482]
[1755058353878,2.3567,4652.4,4652.3,3.482]
[1755058355236,2.3567,4652.4,4652.3,0.001]
[1755058355538,1.9117,4652.4,4652.3,8.632]
[1755058356106,2.3567,4652.4,4652.3,8.632]
[1755058356307,2.9067,4652.4,4652.3,5.151]
[1755058356532,2.9067,4652.4,4652.3,8.632]
[1755058356533,3.14237,4652.4,4652.3,8.632]
[1755058356935,3.14237,4652.4,4652.3,5.151]
[1755058357134,3.14237,4652.4,4652.3,8.632]
[1755058359107,3.14237,4652.4,4652.3,5.151]
[1755058359323,0.55,4652.3,4651.9,0.001]
[1755058359623,0.55,4652.1,4651.9,0.001]
[1755058359820,0.55,4652.1,4652.0,8.631]
[1755058360142,2.7995,4652.1,4652.0,8.631]
[1755058360443,2.9067,4652.1,4652.0,8.631]
[1755058361143,2.9067,4652.1,4652.0,8.632]
[1755058361342,3.2287937,4652.1,4652.0,8.632]
[1755058361519,2.1265937,4652.1,4652.0,8.632]
[1755058361718,2.6765937,4652.1,4652.0,8.632]
[1755058361943,1.8045,4652.1,4652.0,8.632]
[1755058362245,0.307945,4654.0,4652.0,8.632]
[1755058362246,1.8045,4653.7,4652.0,8.632]
[1755058362474,1.8045,4653.2,4652.0,8.632]
[1755058362970,1.8045,4653.9,4652.1,0.4399]
[1755058363175,0.307945,4654.0,4652.2,0.8075]
[1755058363351,0.445,4655.0,4652.2,0.8075]
[1755058363352,1.8045,4654.9,4652.3,0.4399]
[1755058363552,0.002,4656.7,4652.4,4.2875]
[1755058363553,1.8045,4655.5,4652.4,4.2875]
[1755058363755,0.002,4656.7,4652.4,4.2875]
[1755058363756,0.002,4656.7,4654.6,5.152]
[1755058363959,0.002,4656.7,4654.7,4.02034444]
[1755058364154,0.002,4656.7,4654.7,5.26774444]
[1755058364376,0.002,4656.7,4654.8,1.2474]
[1755058364590,0.002,4656.7,4654.9,0.22268559]
[1755058364744,0.002,4656.7,4654.9,5.03591159]
[1755058365078,0.002,4656.7,4655.0,0.55]
[1755058365287,0.002,4656.7,4655.1,3.479]
[1755058365588,0.002,4656.7,4655.9,5.151]
[1755058365750,0.002,4656.7,4656.0,3.479]
[1755058366244,0.002,4656.7,4655.1,3.9254]
[1755058366443,0.002,4656.7,4656.0,5.151]
[1755058366671,0.002,4656.7,4656.0,8.63]
[1755058368489,0.002,4656.7,4656.0,5.151]
[1755058369197,0.002,4656.7,4656.0,5.5909]
[1755058369552,0.002,4656.7,4656.0,8.629]
[1755058371077,0.002,4656.7,4656.0,5.151]
[1755058371277,0.002,4656.7,4656.0,8.713833]
[1755058371680,0.1072,4656.3,4656.0,8.713833]
[1755058372267,0.1072,4656.3,4656.0,5.236833]
[1755058372477,0.1072,4656.3,4656.0,8.713833]
[1755058373456,0.002,4656.7,4656.0,4.002733]
[1755058373672,0.002,4656.7,4656.0,4.917433]
[1755058374990,0.1072,4656.2,4656.0,3.561833]
[1755058375590,0.1072,4656.2,4656.0,7.910833]
[1755058375752,0.1072,4656.2,4656.0,11.385833]
[1755058376085,0.1072,4656.2,4656.0,7.910833]
[1755058376270,0.1072,4656.2,4656.0,11.3]
[1755058377281,0.1072,4656.2,4656.0,7.825]
[1755058377508,0.1072,4656.2,4656.0,11.3]
[1755058378705,1.8065,4656.1,4656.0,11.3]
[1755058379108,0.002,4656.1,4656.0,11.3]
[1755058379912,0.002,4656.1,4656.0,11.299]
[1755058381618,2.2069,4656.1,4656.0,2.677]
[1755058381797,2.2069,4656.1,4656.0,11.299]
[1755058381798,2.42759,4656.1,4656.0,11.299]
[1755058382117,2.97759,4656.1,4656.0,11.299]
[1755058382919,2.97759,4656.1,4656.0,11.298]
[1755058383429,0.22269,4656.1,4656.0,11.298]
[1755058383646,0.002,4656.1,4656.0,11.298]
[1755058383985,0.002,4656.1,4656.0,11.7691]
[1755058384518,0.002,4656.1,4656.0,9.0921]
[1755058384690,0.002,4656.1,4656.0,9.8385]
[1755058385287,0.002,4656.1,4656.0,12.5145]
[1755058385530,0.002,4656.1,4656.0,13.0645]
[1755058385813,0.002,4656.1,4656.0,13.150295]
[1755058386799,0.002,4656.1,4656.0,9.923295]
[1755058387633,0.002,4656.1,4656.0,5.325295]
[1755058388393,0.002,4656.1,4656.0,1.853295]
[1755058388701,0.002,4656.1,4656.0,5.325295]
[1755058388922,0.002,4656.1,4656.0,1.853295]
[1755058389122,0.002,4656.1,4656.0,5.325295]
[1755058390393,0.002,4656.1,4656.0,1.853295]
[1755058390589,0.002,4656.1,4656.0,5.325295]
[1755058391619,0.002,4656.1,4656.0,5.432495]
[1755058392117,0.002,4656.1,4656.0,5.75015385]
[1755058392323,0.002,4656.6,4656.1,0.86765885]
[1755058392520,0.002,4656.6,4656.5,0.6572]
[1755058392699,0.002,4656.6,4656.5,4.1282]
[1755058392903,0.002,4656.6,4656.5,5.3161]
[1755058393103,0.002,4657.2,4656.6,0.86765885]
[1755058393316,0.002,4657.2,4657.1,0.6572]
[1755058393626,0.002,4657.2,4656.1,0.55]
[1755058393792,0.002,4657.2,4656.1,0.01522989]
[1755058393993,1.7417,4657.2,4656.2,3.47]
[1755058394289,0.4652,4657.1,4656.0,0.085795]
[1755058394490,0.4652,4657.1,4656.1,3.47]
[1755058394697,1.7397,4657.0,4656.1,3.47]
[1755058394913,1.7397,4657.0,4656.0,0.085795]
[1755058395129,0.4652,4656.9,4656.0,0.085795]
[1755058395301,0.4652,4656.9,4656.1,5.146]
[1755058395504,1.7397,4656.8,4656.1,5.146]
[1755058395706,0.4652,4656.7,4656.2,3.47]
[1755058396322,2.2049,4656.6,4656.1,5.146]
[1755058396503,0.002,4657.2,4656.2,3.47]
[1755058396700,2.2049,4656.5,4656.2,3.47]
[1755058396899,2.2049,4657.1,4656.2,3.47]
[1755058397127,0.002,4657.2,4656.3,3.469]
[1755058397128,2.42559,4657.0,4656.3,3.469]
[1755058398008,0.22069,4657.0,4656.1,5.146]
[1755058398196,2.2049,4656.9,4656.1,5.146]
[1755058398397,2.2049,4656.8,4656.1,5.146]
[1755058398719,2.2049,4656.7,4656.2,3.469]
[1755058398928,2.2049,4656.6,4656.2,3.469]
[1755058399096,0.002,4657.1,4656.1,5.146]
[1755058399298,2.2049,4656.5,4656.1,5.146]
[1755058399530,0.22049,4656.4,4656.2,3.469]
[1755058399693,2.2049,4656.4,4656.2,3.469]
[1755058399897,2.2049,4656.3,4656.1,5.146]
[1755058400119,2.2049,4656.2,4656.1,5.146]
[1755058400522,2.2049,4656.2,4656.1,8.615]
[1755058401034,2.42539,4656.2,4656.1,8.615]
[1755058401327,2.42539,4656.2,4656.1,5.146]
[1755058401731,2.97539,4656.2,4656.1,5.146]
[1755058401931,2.97539,4656.2,4656.1,8.615]
[1755058402695,2.97539,4656.2,4656.1,5.146]
[1755058402902,2.97539,4656.2,4656.1,8.615]
[1755058403112,2.97539,4656.2,4656.1,5.146]
[1755058403430,2.97539,4656.2,4656.1,8.615]
[1755058403615,3.08259,4656.2,4656.1,8.615]
[1755058406432,2.53259,4656.2,4656.1,8.615]
[1755058409404,2.06739,4656.2,4656.1,8.615]
[1755058410247,0.1072,4656.2,4656.1,8.615]
[1755058411506,0.06375066,4656.2,4656.1,8.615]
[1755058411706,0.002,4657.1,4656.1,6.3721]
[1755058411949,0.002,4657.1,4656.7,0.1072]
[1755058412115,0.1072,4656.9,4656.3,0.1072]
[1755058412320,0.1072,4656.9,4656.4,3.467]
[1755058412623,0.1072,4656.9,4656.5,3.467]
[1755058412822,0.1072,4656.9,4656.6,3.467]
[1755058413608,0.1072,4656.9,4656.7,0.1072]
[1755058413808,0.1072,4656.9,4656.8,3.467]
[1755058414018,0.002,4657.1,4656.8,3.9043]
[1755058414235,0.002,4657.1,4656.9,1.1189]
[1755058414440,0.002,4657.1,4657.0,3.5742]
[1755058414644,0.002,4657.1,4657.0,0.1072]
[1755058414811,0.002,4657.1,4657.0,3.5742]
[1755058415441,0.002,4657.1,4657.0,3.467]
[1755058415640,0.002,4657.1,4656.7,0.2144]
[1755058415949,0.1072,4657.0,4656.8,3.467]
[1755058416305,0.1072,4657.0,4656.8,3.62854693]
[1755058416949,0.1072,4657.0,4656.8,0.16154693]
[1755058417239,0.1072,4657.0,4656.3,0.1072]
[1755058417240,1.8851,4657.0,4656.9,3.466]
[1755058417453,1.8851,4657.0,4656.3,0.1072]
[1755058417609,2.40601,4657.0,4656.5,0.1072]
[1755058417809,2.2171,4656.9,4656.4,3.466]
[1755058418043,0.18891,4657.0,4656.1,5.146]
[1755058418044,0.1072,4656.5,4656.1,5.146]
[1755058418244,0.1072,4656.5,4656.2,3.466]
[1755058418615,0.1072,4656.5,4656.3,3.466]
[1755058420432,1.8851,4656.5,4656.4,3.465]
[1755058420634,0.5464,4656.5,4656.4,3.465]
[1755058420957,0.5464,4656.5,4656.1,5.30995506]
[1755058421266,1.7779,4656.4,4656.2,3.465]
[1755058421564,0.002,4657.1,4656.3,3.465]
[1755058421751,1.7779,4656.7,4656.3,3.465]
[1755058421951,0.1072,4656.4,4656.3,3.465]
[1755058422755,0.1072,4656.4,4656.1,5.30995506]
[1755058422955,0.1072,4656.4,4656.3,3.465]
[1755058424744,0.1072,4656.5,4656.3,3.9023]
[1755058424943,0.002,4657.1,4656.1,5.30995506]
[1755058425142,1.7779,4657.0,4656.2,4.107631]
[1755058425363,0.1072,4656.2,4656.1,5.30995506]
[1755058425562,0.1072,4656.2,4656.1,8.77395506]
[1755058425876,0.1072,4656.2,4656.1,9.89285506]
[1755058426070,0.002,4657.1,4656.1,9.89285506]
[1755058426285,0.002,4657.1,4656.2,0.4373]
[1755058426568,0.002,4657.1,4656.4,0.55]
[1755058426769,0.002,4657.2,4656.5,0.25740999]
[1755058426960,0.002,4657.2,4656.7,0.55]
[1755058427333,0.002,4657.2,4656.8,1.1169]
[1755058427668,0.002,4657.2,4656.7,0.55]
[1755058427873,0.002,4657.2,4656.1,5.30995506]
[1755058427874,0.002,4657.2,4656.8,3.9013]
[1755058428181,0.002,4657.5,4657.0,0.55]
[1755058428473,0.002,4657.5,4657.0,0.75665709]
[1755058428781,0.002,4661.3,4656.9,4.5809]
[1755058428782,0.4392,4660.2,4657.2,0.55]
[1755058428936,0.4392,4660.2,4657.1,1.32355709]
[1755058428937,1.7779,4659.7,4657.4,0.55]
[1755058429342,1.7779,4659.7,4657.6,0.55]
[1755058429650,1.7779,4659.7,4657.7,3.463]
[1755058429852,1.7779,4659.7,4657.7,4.5799]
[1755058430049,1.7779,4659.7,4657.8,0.4373]
[1755058430239,1.7779,4659.7,4657.8,1.1169]
[1755058430439,1.7779,4659.7,4657.7,3.463]
[1755058430440,1.7779,4659.7,4657.9,1.1169]
[1755058430852,1.7779,4659.7,4657.9,1.760186]
[1755058431672,0.4392,4659.5,4657.9,1.080586]
[1755058431870,1.7779,4659.0,4657.9,0.643286]
[1755058432461,0.4392,4658.8,4657.9,0.643286]
[1755058432647,1.7779,4658.5,4657.9,0.643286]
[1755058432844,1.7779,4659.4,4657.9,1.080586]
[1755058433060,1.7779,4659.4,4657.9,1.760186]
[1755058433684,0.002,4660.4,4657.9,1.630586]
[1755058433862,0.002,4660.4,4658.0,5.89659135]
[1755058434179,0.002,4660.4,4658.1,0.55]
[1755058434377,0.002,4660.4,4658.8,0.55]
[1755058434678,0.002,4660.4,4659.0,0.55]
[1755058435179,0.002,4660.4,4659.2,0.55]
[1755058435379,0.002,4660.4,4659.8,5.695]
[1755058435556,0.002,4660.4,4659.8,8.77048174]
[1755058435941,0.002,4660.4,4659.8,9.20778174]
[1755058436263,0.002,4660.4,4659.8,9.31498174]
[1755058436565,0.002,4660.4,4659.8,9.42716827]
[1755058437142,0.002,4660.4,4659.8,10.10676827]
[1755058437371,0.002,4660.4,4659.8,10.65676827]
[1755058438182,0.002,4660.4,4659.8,5.51176827]
[1755058438546,0.002,4660.4,4659.8,4.83216827]
[1755058438748,0.002,4660.4,4659.8,5.51176827]
[1755058439874,0.002,4660.4,4659.9,0.55]
[1755058440066,0.002,4661.3,4660.3,0.55]
[1755058440265,0.002,4661.3,4660.8,0.6572]
[1755058440443,0.002,4661.3,4660.8,4.1162]
[1755058440645,0.002,4661.3,4660.8,0.5625]
[1755058440872,0.002,4661.3,4660.8,3.5662]
[1755058441244,2.0971,4660.9,4660.8,3.5662]
[1755058441449,0.002,4660.9,4660.8,3.5662]
[1755058442362,2.0971,4660.9,4660.8,0.1072]
[1755058442563,2.30701,4660.9,4660.8,3.459]
[1755058443070,2.41421,4660.9,4660.8,3.459]
[1755058443886,2.41421,4660.9,4660.2,0.1072]
[1755058444047,2.0951,4660.8,4660.3,3.458]
[1755058444247,2.0951,4660.8,4660.4,1.232]
[1755058444451,0.21191,4660.9,4659.8,0.16448174]
[1755058444452,2.325801,4660.7,4659.8,0.16448174]
[1755058444652,2.0951,4660.6,4659.9,2.655]
[1755058444848,0.1072,4660.0,4659.9,2.655]
[1755058445163,2.2023,4660.0,4659.9,2.655]
[1755058445386,2.2023,4660.0,4659.9,7.797]
[1755058445563,2.42253,4660.0,4659.9,8.6]
[1755058448168,2.97253,4660.0,4659.9,8.6]
[1755058448377,2.97253,4660.0,4659.9,5.142]
[1755058448776,2.97253,4660.0,4659.9,8.599]
[1755058452660,2.97253,4660.0,4659.9,5.142]
[1755058452989,1.97343,4660.0,4659.9,8.599]
[1755058453288,0.32743,4660.0,4659.9,8.599]
[1755058453495,2.0951,4660.7,4659.9,8.599]
[1755058453810,0.002,4660.9,4659.9,8.599]
[1755058454098,0.1072,4660.6,4659.9,9.1615]
[1755058454257,0.002,4660.9,4660.2,0.1072]
[1755058454258,0.1092,4660.9,4660.2,0.1072]
[1755058454593,1.646,4660.8,4659.9,5.142]
[1755058454885,0.4511,4660.9,4659.9,5.142]
[1755058454886,0.20971,4660.7,4660.0,3.456]
[1755058455055,0.1072,4660.6,4660.0,3.456]
[1755058455256,0.002,4660.9,4660.0,3.9113]
[1755058455456,0.002,4660.9,4659.9,5.142]
[1755058455790,2.0971,4660.9,4660.0,3.456]
[1755058456189,0.1072,4660.5,4659.9,5.2492]
[1755058456400,2.0971,4660.9,4659.9,5.2492]
[1755058456401,0.1072,4660.2,4660.0,3.456]
[1755058456603,0.002,4660.9,4660.0,3.456]
[1755058456903,0.167,4660.9,4660.0,3.9113]
[1755058457102,0.1072,4660.7,4660.0,3.9113]
[1755058457291,0.002,4660.9,4660.0,3.9113]
[1755058457506,0.1092,4660.9,4660.3,0.1072]
[1755058457706,0.002,4660.9,4660.5,0.1072]
[1755058458608,0.002,4660.9,4660.6,0.1072]
[1755058459027,0.002,4660.9,4660.7,3.456]
[1755058460397,0.002,4660.9,4660.7,3.9113]
[1755058460584,0.002,4660.9,4660.8,0.5625]
[1755058461879,0.002,4660.9,4660.8,0.1072]
[1755058462080,0.002,4660.9,4660.8,3.5622]
[1755058462827,0.002,4660.9,4660.8,3.455]
[1755058463029,0.1072,4661.3,4660.8,3.455]
[1755058463191,0.74472145,4666.7,4660.9,1.66815935]
[1755058463192,1.646,4662.9,4660.9,1.66815935]
[1755058463376,0.002,4661.4,4661.2,0.1072]
[1755058463585,0.002,4661.4,4661.3,3.454]
[1755058463830,0.002,4661.4,4661.3,3.5612]